[Event "*** Titled Tuesday Blitz"]
[Site "Chess.com"]
[Date "2019.01.01"]
[Round "6"]
[White "WinnerOleg"]
[Black "nochewycandy"]
[Result "1/2-1/2"]
[WhiteElo "2374"]
[BlackElo "2252"]
[TimeControl "180+2"]
[EndTime "14:26:13 PST"]
[Termination "Game drawn by stalemate"]

1. d4 {[%clk 0:03:01.9]} 1... Nf6 {[%clk 0:02:58.8]} 2. c4 {[%clk 0:03:02.9]}
2... c6 {[%clk 0:02:59.8]} 3. Nf3 {[%clk 0:03:02.1]} 3... d5 {[%clk 0:03:00.9]}
4. e3 {[%clk 0:03:03.8]} 4... Bf5 {[%clk 0:02:59.9]} 5. Nc3 {[%clk 0:03:03.7]}
5... e6 {[%clk 0:03:00.2]} 6. Nh4 {[%clk 0:03:04.8]} 6... Be4 {[%clk 0:03:01.7]}
7. f3 {[%clk 0:03:01.7]} 7... Bg6 {[%clk 0:03:02.8]} 8. Nxg6 {[%clk 0:03:02.3]}
8... hxg6 {[%clk 0:03:04.7]} 9. g3 {[%clk 0:03:00.5]} 9... Bd6 {[%clk
0:03:04.6]} 10. c5 {[%clk 0:03:01.4]} 10... Bxg3+ {[%clk 0:03:05.2]} 11. Kd2
{[%clk 0:02:54.9]} 11... Rxh2+ {[%clk 0:03:04.7]} 12. Rxh2 {[%clk 0:02:55.3]}
12... Bxh2 {[%clk 0:03:06.6]} 13. f4 {[%clk 0:02:56.8]} 13... g5 {[%clk
0:03:05.3]} 14. Qe2 {[%clk 0:02:55]} 14... Bg3 {[%clk 0:03:04.5]} 15. fxg5
{[%clk 0:02:49.8]} 15... Nfd7 {[%clk 0:03:04.7]} 16. Qg4 {[%clk 0:02:29.5]}
16... Bc7 {[%clk 0:03:01.4]} 17. g6 {[%clk 0:02:30.3]} 17... f5 {[%clk
0:02:58.2]} 18. Qh5 {[%clk 0:02:30.9]} 18... Qf6 {[%clk 0:02:54.9]} 19. Kc2
{[%clk 0:02:12]} 19... Nf8 {[%clk 0:02:55.3]} 20. Bd3 {[%clk 0:02:06.7]} 20...
Qxg6 {[%clk 0:02:54]} 21. Qh1 {[%clk 0:02:06.4]} 21... Nbd7 {[%clk 0:02:53.6]}
22. Bd2 {[%clk 0:02:07.8]} 22... Qf6 {[%clk 0:02:53.3]} 23. b4 {[%clk
0:01:57.2]} 23... e5 {[%clk 0:02:44.5]} 24. Rf1 {[%clk 0:01:25.8]} 24... g6
{[%clk 0:02:45]} 25. b5 {[%clk 0:00:51.8]} 25... exd4 {[%clk 0:02:42.8]} 26.
bxc6 {[%clk 0:00:52.8]} 26... bxc6 {[%clk 0:02:44.6]} 27. exd4 {[%clk
0:00:53.5]} 27... Qxd4 {[%clk 0:02:29.8]} 28. Re1+ {[%clk 0:00:53.1]} 28... Kf7
{[%clk 0:02:28.9]} 29. Bxf5 {[%clk 0:00:29.4]} 29... gxf5 {[%clk 0:02:19.1]} 30.
Qh5+ {[%clk 0:00:29.9]} 30... Kg8 {[%clk 0:02:06.7]} 31. Re7 {[%clk 0:00:21.5]}
31... Be5 {[%clk 0:02:01.2]} 32. Qf7+ {[%clk 0:00:21.4]} 32... Kh8 {[%clk
0:02:00.5]} 33. Qh5+ {[%clk 0:00:10.1]} 33... Kg8 {[%clk 0:01:59.8]} 34. Qf7+
{[%clk 0:00:10.5]} 34... Kh8 {[%clk 0:02:01.1]} 35. Qxf5 {[%clk 0:00:10.7]}
35... Qh4 {[%clk 0:01:43.1]} 36. Bg5 {[%clk 0:00:09.5]} 36... Qh2+ {[%clk
0:01:36]} 37. Kd3 {[%clk 0:00:03.9]} 37... Qg3+ {[%clk 0:01:29.7]} 38. Be3
{[%clk 0:00:04.1]} 38... Qg6 {[%clk 0:01:29.6]} 39. Qxg6 {[%clk 0:00:03.2]}
39... Nxg6 {[%clk 0:01:30.5]} 40. Rxd7 {[%clk 0:00:05.1]} 40... Bxc3 {[%clk
0:01:27.2]} 41. Kxc3 {[%clk 0:00:06.1]} 41... Re8 {[%clk 0:01:25.4]} 42. Bd4+
{[%clk 0:00:07.5]} 42... Ne5 {[%clk 0:01:22.1]} 43. Rxa7 {[%clk 0:00:07.9]}
43... Kg8 {[%clk 0:01:22.8]} 44. Bxe5 {[%clk 0:00:06.7]} 44... Rxe5 {[%clk
0:01:23.6]} 45. Rc7 {[%clk 0:00:08.6]} 45... Re2 {[%clk 0:01:24.5]} 46. Rxc6
{[%clk 0:00:09.2]} 46... Rxa2 {[%clk 0:01:25.4]} 47. Rc7 {[%clk 0:00:09.6]}
47... Kf8 {[%clk 0:01:26.1]} 48. Kd4 {[%clk 0:00:09.6]} 48... Rd2+ {[%clk
0:01:24.8]} 49. Ke5 {[%clk 0:00:11.1]} 49... Ke8 {[%clk 0:01:26.3]} 50. Ke6
{[%clk 0:00:11.6]} 50... Kd8 {[%clk 0:01:26.8]} 51. Rd7+ {[%clk 0:00:10.1]}
51... Kc8 {[%clk 0:01:27.2]} 52. Rxd5 {[%clk 0:00:12]} 52... Rxd5 {[%clk
0:01:27.1]} 53. Kxd5 {[%clk 0:00:13.9]} 53... Kd7 {[%clk 0:01:28.8]} 54. c6+
{[%clk 0:00:15.1]} 54... Kc7 {[%clk 0:01:30.1]} 55. Kc5 {[%clk 0:00:17]} 55...
Kc8 {[%clk 0:01:31.5]} 56. Kb5 {[%clk 0:00:18.9]} 56... Kc7 {[%clk 0:01:31.5]}
57. Kc5 {[%clk 0:00:20.5]} 57... Kc8 {[%clk 0:01:32.9]} 58. Kd5 {[%clk
0:00:22.1]} 58... Kc7 {[%clk 0:01:34.2]} 59. Kc5 {[%clk 0:00:23.7]} 59... Kc8
{[%clk 0:01:35.4]} 60. Kd6 {[%clk 0:00:25.4]} 60... Kd8 {[%clk 0:01:36.8]} 61.
Kd5 {[%clk 0:00:26.4]} 61... Kc7 {[%clk 0:01:37.5]} 62. Kc5 {[%clk 0:00:28.2]}
62... Kc8 {[%clk 0:01:39]} 63. Kd6 {[%clk 0:00:30.1]} 63... Kd8 {[%clk
0:01:40.2]} 64. c7+ {[%clk 0:00:32]} 64... Kc8 {[%clk 0:01:41.5]} 65. Kc6 {[%clk
0:00:33.3]} 1/2-1/2

[Event "*** Titled Tuesday Blitz"]
[Site "Chess.com"]
[Date "2019.01.01"]
[Round "6"]
[White "ama18"]
[Black "vladimirdamjanovic"]
[Result "1-0"]
[WhiteElo "2448"]
[BlackElo "2583"]
[TimeControl "180+2"]
[EndTime "14:26:14 PST"]
[Termination "ama18 won on time"]

1. e4 {[%clk 0:03:01.9]} 1... c5 {[%clk 0:02:58.4]} 2. Nf3 {[%clk 0:03:01.7]}
2... d6 {[%clk 0:02:59.7]} 3. d4 {[%clk 0:03:00.6]} 3... cxd4 {[%clk 0:03:01.6]}
4. Nxd4 {[%clk 0:03:02.2]} 4... Nf6 {[%clk 0:03:02.4]} 5. Nc3 {[%clk 0:03:03.2]}
5... a6 {[%clk 0:03:03.9]} 6. h3 {[%clk 0:03:03.3]} 6... e6 {[%clk 0:03:02.1]}
7. g4 {[%clk 0:03:03.4]} 7... b5 {[%clk 0:03:02.4]} 8. g5 {[%clk 0:03:04.2]}
8... Nfd7 {[%clk 0:03:03.2]} 9. h4 {[%clk 0:03:05.6]} 9... Bb7 {[%clk
0:03:00.8]} 10. Bg2 {[%clk 0:03:06.6]} 10... Nb6 {[%clk 0:03:00]} 11. f4 {[%clk
0:03:01.7]} 11... N8d7 {[%clk 0:03:00.3]} 12. Qe2 {[%clk 0:02:51.1]} 12... Rc8
{[%clk 0:03:00]} 13. a3 {[%clk 0:02:35]} 13... Nc5 {[%clk 0:02:42.9]} 14. h5
{[%clk 0:02:25.1]} 14... Nca4 {[%clk 0:02:28.8]} 15. Nxa4 {[%clk 0:02:15.3]}
15... Nxa4 {[%clk 0:02:30.7]} 16. c3 {[%clk 0:02:16.3]} 16... Qa5 {[%clk
0:02:18.7]} 17. Be3 {[%clk 0:02:14.2]} 17... Qc7 {[%clk 0:01:35.4]} 18. O-O
{[%clk 0:02:05.8]} 18... Be7 {[%clk 0:01:07.9]} 19. f5 {[%clk 0:01:50.1]} 19...
e5 {[%clk 0:01:07.8]} 20. Nb3 {[%clk 0:01:49.4]} 20... f6 {[%clk 0:00:59.7]} 21.
g6 {[%clk 0:01:24.5]} 21... Qc4 {[%clk 0:00:47.7]} 22. Qxc4 {[%clk 0:01:14.4]}
22... bxc4 {[%clk 0:00:49.6]} 23. Nd2 {[%clk 0:01:15.6]} 23... hxg6 {[%clk
0:00:37.9]} 24. hxg6 {[%clk 0:01:15.8]} 24... Nc5 {[%clk 0:00:25.7]} 25. Bxc5
{[%clk 0:01:07.6]} 25... Rxc5 {[%clk 0:00:26]} 26. Kf2 {[%clk 0:01:08.3]} 26...
a5 {[%clk 0:00:10.5]} 27. Rh1 {[%clk 0:01:08.4]} 27... Rxh1 {[%clk 0:00:11.4]}
28. Rxh1 {[%clk 0:01:10.3]} 28... Ba6 {[%clk 0:00:07.8]} 29. Rh8+ {[%clk
0:01:09.6]} 29... Bf8 {[%clk 0:00:08.3]} 30. Bf1 {[%clk 0:01:07.1]} 30... Rc7
{[%clk 0:00:03.5]} 31. b3 {[%clk 0:00:55.9]} 31... Bb5 {[%clk 0:00:03]} 32. Bxc4
{[%clk 0:00:54.2]} 32... Bc6 {[%clk 0:00:03.5]} 33. Ke3 {[%clk 0:00:53.4]} 33...
Rb7 {[%clk 0:00:04.5]} 34. Bf7+ {[%clk 0:00:50.9]} 34... Ke7 {[%clk 0:00:05]}
35. b4 {[%clk 0:00:50.6]} 35... axb4 {[%clk 0:00:04.5]} 36. axb4 {[%clk
0:00:52.5]} 36... Ra7 {[%clk 0:00:05.8]} 37. Nc4 {[%clk 0:00:53.2]} 37... Bb5
{[%clk 0:00:05.2]} 38. Nxd6 {[%clk 0:00:54]} 38... Kxd6 {[%clk 0:00:05.9]} 39.
Rxf8 {[%clk 0:00:54.8]} 39... Ra3 {[%clk 0:00:07.5]} 40. Rc8 {[%clk 0:00:51.2]}
40... Bc6 {[%clk 0:00:05]} 41. Kd3 {[%clk 0:00:49.1]} 41... Bb5+ {[%clk
0:00:06.4]} 42. Bc4 {[%clk 0:00:49.3]} 42... Bc6 {[%clk 0:00:04.7]} 43. b5
{[%clk 0:00:49]} 43... Bd7 {[%clk 0:00:04.8]} 44. Rg8 {[%clk 0:00:49.2]} 1-0

[Event "*** Titled Tuesday Blitz"]
[Site "Chess.com"]
[Date "2019.01.01"]
[Round "6"]
[White "TheoSlade"]
[Black "Shivagami"]
[Result "0-1"]
[WhiteElo "2068"]
[BlackElo "2137"]
[TimeControl "180+2"]
[EndTime "14:26:15 PST"]
[Termination "Shivagami won by checkmate"]

1. d4 {[%clk 0:03:01.9]} 1... d5 {[%clk 0:02:59.1]} 2. c4 {[%clk 0:03:03.1]}
2... c6 {[%clk 0:02:58.4]} 3. Nc3 {[%clk 0:03:04.4]} 3... Nf6 {[%clk 0:02:57.3]}
4. e3 {[%clk 0:03:05.8]} 4... a6 {[%clk 0:02:56.8]} 5. Nf3 {[%clk 0:03:05.4]}
5... Bf5 {[%clk 0:02:56.8]} 6. Qb3 {[%clk 0:02:56.7]} 6... Ra7 {[%clk
0:02:55.6]} 7. c5 {[%clk 0:02:53.1]} 7... Nbd7 {[%clk 0:02:53.3]} 8. Bd2 {[%clk
0:02:49.4]} 8... e5 {[%clk 0:02:45.1]} 9. Na4 {[%clk 0:02:01.9]} 9... e4 {[%clk
0:02:41.5]} 10. Ng1 {[%clk 0:02:01.3]} 10... Be7 {[%clk 0:02:31.3]} 11. Ne2
{[%clk 0:01:55.1]} 11... O-O {[%clk 0:02:31.5]} 12. Ng3 {[%clk 0:01:55.7]} 12...
Bg6 {[%clk 0:02:31.9]} 13. Be2 {[%clk 0:01:56]} 13... Qc7 {[%clk 0:02:30.8]} 14.
O-O {[%clk 0:01:54.4]} 14... h5 {[%clk 0:02:21.8]} 15. Nb6 {[%clk 0:01:36.6]}
15... h4 {[%clk 0:02:18.8]} 16. Nh1 {[%clk 0:01:36.9]} 16... Bd8 {[%clk
0:02:11.2]} 17. Ba5 {[%clk 0:01:30.3]} 17... Qb8 {[%clk 0:02:07.6]} 18. Nxd7
{[%clk 0:01:30.6]} 18... Nxd7 {[%clk 0:02:09.2]} 19. Bxd8 {[%clk 0:01:31.6]}
19... Qxd8 {[%clk 0:02:07.6]} 20. f4 {[%clk 0:01:16.2]} 20... exf3 {[%clk
0:02:05.2]} 21. Bxf3 {[%clk 0:01:15.1]} 21... Qg5 {[%clk 0:02:04.8]} 22. Nf2
{[%clk 0:01:14.7]} 22... Re8 {[%clk 0:01:59.7]} 23. Rae1 {[%clk 0:01:15.7]}
23... Bf5 {[%clk 0:01:57.6]} 24. Kh1 {[%clk 0:01:12.8]} 24... Qg6 {[%clk
0:01:52.8]} 25. Qd1 {[%clk 0:01:09.2]} 25... Nf6 {[%clk 0:01:51.4]} 26. b3
{[%clk 0:00:54.4]} 26... Raa8 {[%clk 0:01:51.7]} 27. Nh3 {[%clk 0:00:47.7]}
27... Re7 {[%clk 0:01:35.1]} 28. Nf4 {[%clk 0:00:48.3]} 28... Qh6 {[%clk
0:01:35.4]} 29. Qd2 {[%clk 0:00:37.7]} 29... Rae8 {[%clk 0:01:31.6]} 30. Re2
{[%clk 0:00:30.2]} 30... g5 {[%clk 0:01:31.7]} 31. Nd3 {[%clk 0:00:29]} 31... g4
{[%clk 0:01:26.8]} 32. Bxd5 {[%clk 0:00:30.3]} 32... Bxd3 {[%clk 0:01:26.3]} 33.
Bxf7+ {[%clk 0:00:24.6]} 33... Rxf7 {[%clk 0:01:20]} 34. Qxd3 {[%clk 0:00:26.5]}
34... Nd5 {[%clk 0:01:15.8]} 35. Rxf7 {[%clk 0:00:25.6]} 35... Kxf7 {[%clk
0:01:16]} 36. Rf2+ {[%clk 0:00:24]} 36... Kg8 {[%clk 0:01:06.8]} 37. Qf5 {[%clk
0:00:20.8]} 37... Qe6 {[%clk 0:00:58.1]} 38. Qg5+ {[%clk 0:00:20.7]} 38... Kh7
{[%clk 0:00:52.3]} 39. Qxh4+ {[%clk 0:00:18.2]} 39... Kg6 {[%clk 0:00:51.8]} 40.
h3 {[%clk 0:00:15.7]} 40... Nxe3 {[%clk 0:00:49.4]} 41. hxg4 {[%clk 0:00:13.5]}
41... Nxg4 {[%clk 0:00:49.2]} 42. g3 {[%clk 0:00:09]} 42... Qe1+ {[%clk
0:00:46.8]} 43. Kg2 {[%clk 0:00:08.7]} 43... Qxf2+ {[%clk 0:00:47.5]} 44. Kh3
{[%clk 0:00:08.3]} 44... Qh2+ {[%clk 0:00:48.3]} 45. Kxg4 {[%clk 0:00:09.6]}
45... Re4+ {[%clk 0:00:49.6]} 46. Kf3 {[%clk 0:00:11]} 46... Qe2# {[%clk
0:00:50.3]} 0-1

[Event "*** Titled Tuesday Blitz"]
[Site "Chess.com"]
[Date "2019.01.01"]
[Round "6"]
[White "juniortay"]
[Black "Peroncio"]
[Result "0-1"]
[WhiteElo "2406"]
[BlackElo "2637"]
[TimeControl "180+2"]
[EndTime "14:26:19 PST"]
[Termination "Peroncio won by resignation"]

1. e4 {[%clk 0:03:01.9]} 1... e5 {[%clk 0:03:00.4]} 2. Nc3 {[%clk 0:03:02]} 2...
Nc6 {[%clk 0:03:01.5]} 3. Bc4 {[%clk 0:03:02.6]} 3... Nf6 {[%clk 0:03:02.1]} 4.
d3 {[%clk 0:03:03.6]} 4... Na5 {[%clk 0:02:55.9]} 5. Nge2 {[%clk 0:03:03.3]}
5... Be7 {[%clk 0:02:49.3]} 6. O-O {[%clk 0:03:01.8]} 6... O-O {[%clk
0:02:49.7]} 7. Bb3 {[%clk 0:03:00.3]} 7... d6 {[%clk 0:02:44.3]} 8. f4 {[%clk
0:02:59]} 8... c6 {[%clk 0:02:36.4]} 9. Qe1 {[%clk 0:02:58.3]} 9... Kh8 {[%clk
0:02:03.8]} 10. fxe5 {[%clk 0:02:55.7]} 10... dxe5 {[%clk 0:02:03.9]} 11. Qg3
{[%clk 0:02:56.5]} 11... Nxb3 {[%clk 0:01:58.3]} 12. axb3 {[%clk 0:02:55.4]}
12... Qd6 {[%clk 0:01:59.1]} 13. Bg5 {[%clk 0:02:53.7]} 13... a6 {[%clk
0:01:49.1]} 14. Kh1 {[%clk 0:02:52.6]} 14... Be6 {[%clk 0:01:45.5]} 15. Qh4
{[%clk 0:02:50.6]} 15... Ng8 {[%clk 0:01:44.9]} 16. Bxe7 {[%clk 0:02:31.9]}
16... Qxe7 {[%clk 0:01:46.8]} 17. Qh5 {[%clk 0:02:23.4]} 17... f6 {[%clk
0:01:45.7]} 18. Ng3 {[%clk 0:02:16.8]} 18... Rad8 {[%clk 0:01:46.7]} 19. Rf3
{[%clk 0:02:03.6]} 19... Qd7 {[%clk 0:01:46.2]} 20. h3 {[%clk 0:02:00]} 20...
Bf7 {[%clk 0:01:31]} 21. Qf5 {[%clk 0:01:41.9]} 21... Be6 {[%clk 0:01:29]} 22.
Qh5 {[%clk 0:01:40.8]} 22... Ne7 {[%clk 0:01:30.4]} 23. Raf1 {[%clk 0:01:34.7]}
23... Bf7 {[%clk 0:01:28.7]} 24. Qh4 {[%clk 0:01:23.4]} 24... Ng6 {[%clk
0:01:30]} 25. Qg4 {[%clk 0:01:14.2]} 25... Qxg4 {[%clk 0:01:29.8]} 26. hxg4
{[%clk 0:01:16.1]} 26... h6 {[%clk 0:01:24.9]} 27. Nf5 {[%clk 0:01:06.7]} 27...
Be6 {[%clk 0:01:25.5]} 28. Nd1 {[%clk 0:01:03.3]} 28... Rf7 {[%clk 0:01:18.8]}
29. Nde3 {[%clk 0:01:04]} 29... Nf8 {[%clk 0:01:19.4]} 30. Rh3 {[%clk
0:00:41.9]} 30... Nh7 {[%clk 0:01:18.7]} 31. Rhf3 {[%clk 0:00:25.2]} 31... Ng5
{[%clk 0:01:19.1]} 32. R3f2 {[%clk 0:00:26.5]} 32... Kh7 {[%clk 0:01:19.2]} 33.
Kh2 {[%clk 0:00:27.6]} 33... a5 {[%clk 0:01:15.9]} 34. Kg3 {[%clk 0:00:27.9]}
34... Rfd7 {[%clk 0:01:10.3]} 35. Rh1 {[%clk 0:00:27.7]} 35... Kg8 {[%clk
0:01:08.6]} 36. Rff1 {[%clk 0:00:21.5]} 36... Ra8 {[%clk 0:01:09.3]} 37. Ra1
{[%clk 0:00:22.2]} 37... b5 {[%clk 0:01:09.9]} 38. Rh4 {[%clk 0:00:19.7]} 38...
Rda7 {[%clk 0:01:06.3]} 39. Rah1 {[%clk 0:00:19.5]} 39... Nf7 {[%clk 0:01:07.8]}
40. R1h2 {[%clk 0:00:12.1]} 40... a4 {[%clk 0:01:08.6]} 41. bxa4 {[%clk
0:00:13.3]} 41... Rxa4 {[%clk 0:01:09.2]} 42. Ne7+ {[%clk 0:00:13.4]} 42... Kf8
{[%clk 0:01:07.3]} 43. Nxc6 {[%clk 0:00:15.3]} 43... Rc8 {[%clk 0:01:04.6]} 44.
g5 {[%clk 0:00:04.1]} 44... fxg5 {[%clk 0:01:01.3]} 0-1

[Event "*** Titled Tuesday Blitz"]
[Site "Chess.com"]
[Date "2019.01.01"]
[Round "6"]
[White "rikyshi"]
[Black "StoreySniper"]
[Result "0-1"]
[WhiteElo "2205"]
[BlackElo "2349"]
[TimeControl "180+2"]
[EndTime "14:26:23 PST"]
[Termination "StoreySniper won by resignation"]

1. d4 {[%clk 0:03:01.9]} 1... g6 {[%clk 0:03:00.3]} 2. e4 {[%clk 0:03:00.2]}
2... Bg7 {[%clk 0:03:02.2]} 3. Nc3 {[%clk 0:02:54.9]} 3... c5 {[%clk 0:03:03.1]}
4. Be3 {[%clk 0:02:53.8]} 4... cxd4 {[%clk 0:03:03.1]} 5. Bxd4 {[%clk
0:02:54.6]} 5... Nf6 {[%clk 0:03:04.8]} 6. e5 {[%clk 0:02:51.8]} 6... Nh5 {[%clk
0:03:05.6]} 7. Nh3 {[%clk 0:02:45.5]} 7... f6 {[%clk 0:02:51.6]} 8. exf6 {[%clk
0:02:34.7]} 8... Nxf6 {[%clk 0:02:52.6]} 9. Bc4 {[%clk 0:02:11.5]} 9... Nc6
{[%clk 0:02:49]} 10. O-O {[%clk 0:02:07.3]} 10... Nxd4 {[%clk 0:02:36.9]} 11.
Qxd4 {[%clk 0:02:07.6]} 11... e6 {[%clk 0:02:33.1]} 12. Rad1 {[%clk 0:01:56.4]}
12... O-O {[%clk 0:02:33.4]} 13. Bxe6+ {[%clk 0:01:55.7]} 13... Kh8 {[%clk
0:02:34.2]} 14. Bb3 {[%clk 0:01:53.3]} 14... d5 {[%clk 0:02:31.4]} 15. Nxd5
{[%clk 0:01:41.1]} 15... Bxh3 {[%clk 0:02:29.2]} 16. gxh3 {[%clk 0:01:42.5]}
16... Nxd5 {[%clk 0:02:21.7]} 17. Qxd5 {[%clk 0:01:42.9]} 17... Qh4 {[%clk
0:02:03.1]} 18. Rd3 {[%clk 0:01:30.8]} 18... Rad8 {[%clk 0:01:52.1]} 19. Qc4
{[%clk 0:01:10.2]} 19... Bd4 {[%clk 0:01:42.4]} 20. Rg3 {[%clk 0:00:59.7]} 20...
Qf4 {[%clk 0:01:21.7]} 21. Qe2 {[%clk 0:00:27.4]} 21... Rde8 {[%clk 0:01:04.7]}
22. Qg4 {[%clk 0:00:03.5]} 22... Bxf2+ {[%clk 0:00:58.5]} 23. Kg2 {[%clk
0:00:03]} 23... Bxg3 {[%clk 0:00:31.7]} 24. Rxf4 {[%clk 0:00:03.2]} 24... Bxf4
{[%clk 0:00:32.8]} 25. Qf3 {[%clk 0:00:03.8]} 25... Re7 {[%clk 0:00:18.9]} 26.
Qd5 {[%clk 0:00:04.7]} 26... Bh6 {[%clk 0:00:18]} 27. h4 {[%clk 0:00:06.1]}
27... Re2+ {[%clk 0:00:17.2]} 28. Kh3 {[%clk 0:00:04.1]} 28... Re3+ {[%clk
0:00:18.1]} 29. Kg2 {[%clk 0:00:04.9]} 29... Bg7 {[%clk 0:00:15.6]} 30. h5
{[%clk 0:00:06.1]} 30... gxh5 {[%clk 0:00:16.3]} 31. Qxh5 {[%clk 0:00:06.5]}
31... Re5 {[%clk 0:00:15.5]} 32. Qh3 {[%clk 0:00:06.1]} 32... Rg5+ {[%clk
0:00:16.4]} 33. Kh1 {[%clk 0:00:06.1]} 33... Bd4 {[%clk 0:00:13.1]} 34. Qg3
{[%clk 0:00:02.6]} 34... Rxg3 {[%clk 0:00:13.9]} 35. hxg3 {[%clk 0:00:04.5]}
35... Bxb2 {[%clk 0:00:14.8]} 36. c4 {[%clk 0:00:05.1]} 36... Be5 {[%clk
0:00:15.7]} 37. Kg2 {[%clk 0:00:07]} 37... Rg8 {[%clk 0:00:15.6]} 38. g4 {[%clk
0:00:07]} 38... Rxg4+ {[%clk 0:00:16.4]} 39. Kf3 {[%clk 0:00:08.9]} 39... Rf4+
{[%clk 0:00:17.5]} 40. Ke3 {[%clk 0:00:10.2]} 40... b6 {[%clk 0:00:18.2]} 41.
Kd3 {[%clk 0:00:12.1]} 41... h5 {[%clk 0:00:18.9]} 42. c5 {[%clk 0:00:13.7]}
42... bxc5 {[%clk 0:00:19.4]} 43. Bg8 {[%clk 0:00:13.9]} 43... Kxg8 {[%clk
0:00:19.2]} 0-1

[Event "*** Titled Tuesday Blitz"]
[Site "Chess.com"]
[Date "2019.01.01"]
[Round "6"]
[White "nurmiTV"]
[Black "gmjlh"]
[Result "1-0"]
[WhiteElo "2628"]
[BlackElo "2641"]
[TimeControl "180+2"]
[EndTime "14:26:24 PST"]
[Termination "nurmiTV won on time"]

1. c4 {[%clk 0:02:58.5]} 1... e5 {[%clk 0:02:58.5]} 2. g3 {[%clk 0:02:59.2]}
2... c6 {[%clk 0:02:58.4]} 3. d4 {[%clk 0:02:58.7]} 3... e4 {[%clk 0:02:58.1]}
4. Bg2 {[%clk 0:02:55.9]} 4... d5 {[%clk 0:02:57.6]} 5. Nc3 {[%clk 0:02:56.8]}
5... h6 {[%clk 0:02:37.9]} 6. Nh3 {[%clk 0:02:37.3]} 6... g5 {[%clk 0:02:33.4]}
7. f3 {[%clk 0:02:14.6]} 7... exf3 {[%clk 0:02:32.8]} 8. exf3 {[%clk 0:02:15.2]}
8... Bg7 {[%clk 0:02:19.3]} 9. O-O {[%clk 0:02:07.3]} 9... Ne7 {[%clk
0:02:19.9]} 10. cxd5 {[%clk 0:01:50.7]} 10... O-O {[%clk 0:02:17.6]} 11. Be3
{[%clk 0:01:41.2]} 11... Nf5 {[%clk 0:01:57.7]} 12. Bf2 {[%clk 0:01:40.3]} 12...
cxd5 {[%clk 0:01:57.2]} 13. f4 {[%clk 0:01:34.9]} 13... g4 {[%clk 0:01:57]} 14.
Qxg4 {[%clk 0:01:34.9]} 14... Ne3 {[%clk 0:01:46.6]} 15. Qe2 {[%clk 0:01:21.2]}
15... Nxf1 {[%clk 0:01:17.3]} 16. Rxf1 {[%clk 0:01:12.4]} 16... Nc6 {[%clk
0:01:18.1]} 17. Qd3 {[%clk 0:00:58.2]} 17... Re8 {[%clk 0:01:06.3]} 18. f5
{[%clk 0:00:47.5]} 18... Nb4 {[%clk 0:00:43.5]} 19. Qb5 {[%clk 0:00:45.5]} 19...
a5 {[%clk 0:00:43.8]} 20. g4 {[%clk 0:00:27.4]} 20... b6 {[%clk 0:00:22]} 21.
Qa4 {[%clk 0:00:16]} 21... Ba6 {[%clk 0:00:13.5]} 22. Rd1 {[%clk 0:00:16.3]}
22... Rc8 {[%clk 0:00:10.3]} 23. Nf4 {[%clk 0:00:16.2]} 23... Qg5 {[%clk
0:00:10.1]} 24. Nfxd5 {[%clk 0:00:14.4]} 24... Nxd5 {[%clk 0:00:10.1]} 25. Nxd5
{[%clk 0:00:14.5]} 25... Qxg4 {[%clk 0:00:10.6]} 26. f6 {[%clk 0:00:12.8]} 26...
Bb7 {[%clk 0:00:04.2]} 27. h3 {[%clk 0:00:06.2]} 27... Qg5 {[%clk 0:00:03.2]}
28. Qb3 {[%clk 0:00:03.4]} 28... Bxf6 {[%clk 0:00:03.3]} 29. Nxf6+ {[%clk
0:00:04.2]} 29... Qxf6 {[%clk 0:00:05.2]} 30. Bxb7 {[%clk 0:00:05.5]} 30... Rb8
{[%clk 0:00:04.1]} 31. Bg2 {[%clk 0:00:06.6]} 31... Qg6 {[%clk 0:00:04.4]} 32.
Qg3 {[%clk 0:00:07.8]} 32... Qxg3 {[%clk 0:00:05.2]} 33. Bxg3 {[%clk 0:00:09.7]}
33... Rbd8 {[%clk 0:00:07]} 34. d5 {[%clk 0:00:09.1]} 34... Kg7 {[%clk
0:00:07.7]} 35. Bf2 {[%clk 0:00:10.6]} 35... Rd6 {[%clk 0:00:08.3]} 36. Bg3
{[%clk 0:00:11.3]} 36... Rg6 {[%clk 0:00:09.4]} 37. Kf2 {[%clk 0:00:10.7]} 37...
Rc8 {[%clk 0:00:09.8]} 38. Rd2 {[%clk 0:00:11.2]} 38... Rf6+ {[%clk 0:00:11.3]}
39. Bf3 {[%clk 0:00:12.1]} 39... Rf5 {[%clk 0:00:05.1]} 40. d6 {[%clk
0:00:13.2]} 40... Rd8 {[%clk 0:00:05.9]} 41. d7 {[%clk 0:00:13.3]} 1-0